fUST/lending_fUST_20240921
["ID","MTS","AMOUNT","RATE_DAILY","PERIOD"]
[338700984,1726885843713,-500.0,0.00014228,2]
[338700985,1726885843723,-699.74,0.00014228,2]
[338700986,1726885843734,-500.0,0.00014228,2]
[338700987,1726885843744,-500.0,0.00014228,2]
[338700988,1726885843754,-623.7012568,0.00014228,2]
[338700989,1726885843764,-500.0,0.00014228,2]
[338700990,1726885843773,-500.0,0.00014228,2]
[338700991,1726885843782,-500.0,0.00014228,2]
[338700992,1726885843792,-500.0,0.00014228,2]
[338700993,1726885843801,-15598.977982,0.00014228,2]
[338700994,1726885843810,-151.0,0.00014232,2]
[338700995,1726885843822,-1418.438112,0.00014232,2]
[338700996,1726885843833,-1418.438112,0.00014232,2]
[338700997,1726885843845,-781.840201,0.00014232,2]
[338700998,1726885843856,-781.840201,0.00014232,2]
[338700999,1726885843866,-151.0,0.00014232,2]
[338701000,1726885843875,-151.0,0.00014232,2]
[338701001,1726885843884,-151.0,0.00014232,2]
[338701002,1726885843893,-495.684743,0.00014232,2]
[338701003,1726885843902,-495.684743,0.00014232,2]
[338701004,1726885843912,-151.0,0.00014232,2]
[338701005,1726885843920,-151.0,0.00014232,2]
[338701006,1726885843930,-151.0,0.00014232,2]
[338701007,1726885843939,-152.677464,0.00014232,2]
[338701008,1726885843948,-152.677464,0.00014232,2]
[338701009,1726885843957,-151.0,0.00014232,2]
[338701010,1726885844108,-488.129277,0.00014232,2]
[338701011,1726885844119,-488.129277,0.00014232,2]
[338701012,1726885844129,-151.0,0.00014232,2]
[338701013,1726885844138,-151.0,0.00014232,2]
[338701014,1726885844148,-151.0,0.00014232,2]
[338701015,1726885844157,-151.0,0.00014232,2]
[338701016,1726885844166,-151.0,0.00014232,2]
[338701017,1726885844176,-500.0,0.00014237,2]
[338701018,1726885844185,-151.0,0.00014238,2]
[338701019,1726885844194,-500.0,0.00014238,2]
[338701020,1726885844204,-500.0,0.00014238,2]
[338701021,1726885844213,-500.0,0.00014238,2]
[338701022,1726885844222,-500.0,0.00014238,2]
[338701023,1726885844233,-500.0,0.00014238,2]
[338701024,1726885844242,-500.0,0.00014238,2]
[338701025,1726885844252,-500.0,0.00014238,2]
[338701026,1726885844261,-500.0,0.00014238,2]
[338701027,1726885844272,-500.0,0.00014238,2]
[338701028,1726885844282,-500.84967241,0.00014238,2]
[338701029,1726885844293,-500.0,0.00014238,2]
[338701030,1726885844304,-500.0,0.00014238,2]
[338701031,1726885844314,-501.01725033,0.00014238,2]
[338701032,1726885844323,-501.99008311,0.00014238,2]
[338701033,1726885844333,-501.85434409,0.00014238,2]
[338701034,1726885844343,-500.0,0.00014238,2]
[338701035,1726885844352,-500.0,0.00014238,2]
[338701036,1726885844361,-500.39528759,0.00014238,2]
[338701037,1726885844371,-506.93414818,0.00014238,2]
[338701038,1726885844382,-508.86491657,0.00014238,2]
[338701039,1726885844394,-505.20682635,0.00014238,2]
[338701040,1726885844404,-503.70952505,0.00014238,2]
[338701041,1726885844415,-501.5813928,0.00014238,2]
[338701042,1726885844425,-571.17241894,0.00014238,2]
[338701043,1726885844436,-500.0,0.00014238,2]
[338701044,1726885844447,-502.32683373,0.00014238,2]
[338701045,1726885844460,-507.18329546,0.00014238,2]
[338701046,1726885844471,-500.0,0.00014238,2]
[338701047,1726885844480,-501.047481,0.00014238,2]
[338701048,1726885844490,-530.23890249,0.00014238,2]
[338701049,1726885844500,-196.82853947,0.00014238,2]
[338701050,1726885844510,-500.0,0.00014238,2]
[338701051,1726885844523,-500.0,0.00014238,2]
[338701052,1726885844536,-500.0,0.00014238,2]
[338701053,1726885844546,-595.45,0.00014238,2]
[338701054,1726885844555,-500.0,0.00014238,2]
[338701055,1726885844565,-501.83071564,0.00014238,2]
[338701056,1726885844575,-252.59641309,0.00014238,2]
[338701057,1726885844584,-500.0,0.00014238,2]
[338701058,1726885844595,-500.0,0.00014238,2]
[338701059,1726885844605,-503.81253109,0.00014238,2]
[338701060,1726885844615,-500.0,0.00014238,2]
[338701061,1726885844627,-469.63465736,0.00014238,2]
[338701062,1726885844637,-500.0,0.00014238,2]
[338701063,1726885844646,-500.0,0.00014238,2]
[338701064,1726885844655,-500.0,0.00014238,2]
[338701065,1726885844664,-500.0,0.00014238,2]
[338701066,1726885844674,-500.0,0.00014238,2]
[338701067,1726885844684,-500.0,0.00014238,2]
[338701068,1726885844693,-500.0,0.00014238,2]
[338701069,1726885844703,-500.0,0.00014238,2]
[338701070,1726885844713,-502.62406265,0.00014238,2]
[338701071,1726885844723,-282.66339262,0.00014238,2]
[338701072,1726885844732,-501.58428584,0.00014238,2]
[338701073,1726885844742,-500.0,0.00014238,2]
[338701074,1726885844751,-502.2835384,0.00014238,2]
[338701075,1726885844761,-500.0,0.00014238,2]
[338701076,1726885844773,-500.0,0.00014238,2]
[338701077,1726885844783,-500.0,0.00014238,2]
[338701078,1726885844795,-500.0,0.00014238,2]
[338701079,1726885844804,-500.0,0.00014238,2]
[338701080,1726885844814,-501.46320218,0.00014238,2]
[338701081,1726885844823,-500.0,0.00014238,2]
[338701082,1726885844834,-500.0,0.00014238,2]
[338701083,1726885844845,-500.0,0.00014238,2]
[338701084,1726885844855,-1605.24,0.00014238,2]
[338701085,1726885844865,-500.0,0.00014238,2]
[338701086,1726885844876,-514.69753061,0.00014238,2]
[338701087,1726885844887,-500.0,0.00014238,2]
[338701088,1726885844898,-500.0,0.00014238,2]
[338701089,1726885844907,-500.0,0.00014238,2]
[338701090,1726885844917,-335.60657951,0.00014238,2]
[338701091,1726885844927,-500.52985022,0.00014238,2]
[338701092,1726885844938,-500.0,0.00014238,2]
[338701093,1726885844948,-500.0,0.00014238,2]
[338701094,1726885844959,-604.14,0.00014238,2]
[338701095,1726885844971,-500.0,0.00014238,2]
[338701096,1726885844981,-500.0,0.00014238,2]
[338701097,1726885844991,-500.0,0.00014238,2]
[338701098,1726885845001,-500.0,0.00014238,2]
[338701099,1726885845011,-500.0,0.00014238,2]
[338701100,1726885845020,-500.0,0.00014238,2]
[338701101,1726885845030,-337.89,0.00014238,2]
[338701102,1726885845039,-502.14954439,0.00014238,2]
[338701103,1726885845048,-500.89475898,0.00014238,2]
[338701104,1726885845058,-500.0,0.00014238,2]
[338701105,1726885845067,-500.0,0.00014238,2]
[338701106,1726885845076,-500.0,0.00014238,2]
[338701107,1726885845085,-500.0,0.00014238,2]
[338701108,1726885845094,-853.98,0.00014238,2]
[338701109,1726885845104,-500.0,0.00014238,2]
[338701110,1726885845113,-500.0,0.00014238,2]
[338701111,1726885845122,-500.0,0.00014238,2]
[338701112,1726885845131,-500.0,0.00014238,2]
[338701113,1726885845141,-584.90712883,0.00014238,2]
[338701114,1726885845150,-500.0,0.00014238,2]
[338701115,1726885845159,-500.0,0.00014238,2]
[338701116,1726885845169,-552.34448424,0.00014238,2]
[338701117,1726885845178,-500.0,0.00014238,2]
[338701118,1726885845187,-500.88805258,0.00014238,2]
[338701119,1726885845196,-502.78105398,0.00014238,2]
[338701120,1726885845205,-500.0,0.00014238,2]
[338701121,1726885845214,-500.0,0.00014238,2]
[338701122,1726885845224,-500.0,0.00014238,2]
[338701123,1726885845233,-500.0,0.00014238,2]
[338701124,1726885845242,-500.0,0.00014238,2]
[338701125,1726885845251,-533.05091085,0.00014238,2]
[338701126,1726885845260,-500.0,0.00014238,2]
[338701127,1726885845271,-503.73592296,0.00014238,2]
[338701128,1726885845280,-500.0,0.00014238,2]
[338701129,1726885845290,-500.0,0.00014238,2]
[338701130,1726885845301,-500.0,0.00014238,2]
[338701131,1726885845310,-500.0,0.00014238,2]
[338701132,1726885845320,-500.0,0.00014238,2]
[338701133,1726885845329,-500.0,0.00014238,2]
[338701134,1726885845338,-570.94,0.00014238,2]
[338701135,1726885845348,-603.96,0.00014238,2]
[338701136,1726885845357,-501.34828984,0.00014238,2]
[338701137,1726885845367,-500.0,0.00014238,2]
[338701138,1726885845376,-500.0,0.00014238,2]
[338701139,1726885845385,-500.0,0.00014238,2]
[338701140,1726885845395,-500.0,0.00014238,2]
[338701141,1726885845404,-500.0,0.00014238,2]
[338701142,1726885845414,-164.1718843,0.00014238,2]
[338701143,1726885845423,-500.0,0.00014238,2]
[338701144,1726885845432,-500.0,0.00014238,2]
[338701145,1726885845442,-500.0,0.00014238,2]
[338701146,1726885845452,-568.0,0.00014238,2]
[338701147,1726885845462,-500.0,0.00014238,2]
[338701148,1726885845471,-502.42592655,0.00014238,2]
[338701149,1726885845481,-500.0,0.00014238,2]
[338701150,1726885845490,-500.0,0.00014238,2]
[338701151,1726885845500,-500.0,0.00014238,2]
[338701152,1726885845510,-290.721966,0.00014238,2]
[338701153,1726885845519,-510.60517127,0.00014238,2]
[338701154,1726885845530,-290.721966,0.00014238,2]
[338701155,1726885845539,-151.0,0.00014238,2]
[338701156,1726885845549,-501.00057643,0.00014238,2]
[338701157,1726885845558,-500.0,0.00014238,2]
[338701158,1726885845567,-592.2125189,0.00014238,2]
[338701159,1726885845576,-500.0,0.00014238,2]
[338701160,1726885845586,-500.98878274,0.00014238,2]
[338701161,1726885845595,-509.76698421,0.00014238,2]
[338701162,1726885845604,-500.0,0.00014238,2]
[338701163,1726885845614,-500.0,0.00014238,2]
[338701164,1726885845623,-500.0,0.00014238,2]
[338701165,1726885845633,-500.0,0.00014238,2]
[338701166,1726885845642,-500.0,0.00014238,2]
[338701167,1726885845651,-207.852701,0.00014238,2]
[338701168,1726885845659,-151.0,0.00014252,2]
[338701169,1726885845668,-151.0,0.00014253,2]
[338701170,1726885845677,-505.18409636,0.00014253,2]
[338701171,1726885845686,-503.12360472,0.00014253,2]
[338701172,1726885845695,-500.0,0.00014253,2]
[338701173,1726885845705,-502.55746313,0.00014253,2]
[338701174,1726885845714,-151.0,0.00014253,2]
[338701175,1726885845723,-151.0,0.00014253,2]
[338701176,1726885845733,-256.790694,0.00014253,2]
[338701177,1726885845743,-150.112233,0.000143,2]
[338701178,1726885845752,-150.112233,0.000143,2]
[338701179,1726885845761,-461.84822308,0.000143,2]
[338701180,1726885845771,-7140.47594759,0.000143,2]
[338701181,1726885845780,-150.112233,0.000143,2]
[338701182,1726885845789,-150.112233,0.000143,2]
[338701183,1726885845798,-150.112233,0.000144,2]
[338701184,1726885845808,-150.112233,0.000144,2]
[338701185,1726885845817,-150.112233,0.000144,2]
[338701186,1726885845826,-150.112233,0.000144,2]
[338701187,1726885845836,-150.112233,0.000144,2]
[338701188,1726885845844,-150.112233,0.000144,2]
[338701189,1726885845854,-7799.48899099,0.00014463,2]
[338701190,1726885845863,-7799.48899099,0.00014463,2]
[338701191,1726885845871,-151.0,0.00014473,2]
[338701192,1726885845880,-5000.0,0.00014473,2]
[338701193,1726885845890,-5000.0,0.00014473,2]
[338701194,1726885845899,-3632.549123,0.00014473,2]
[338701195,1726885845907,-1418.438112,0.00014473,2]
[338701196,1726885845918,-1418.438112,0.00014473,2]
[338701197,1726885845927,-781.840201,0.00014473,2]
[338701198,1726885845936,-781.840201,0.00014473,2]
[338701199,1726885845945,-151.0,0.00014473,2]
[338701200,1726885845954,-151.0,0.00014473,2]
[338701201,1726885845963,-151.0,0.00014473,2]
[338701202,1726885845972,-495.684743,0.00014473,2]
[338701203,1726885845982,-495.684743,0.00014473,2]
[338701204,1726885845991,-151.0,0.00014473,2]
[338701205,1726885846000,-151.0,0.00014473,2]
[338701206,1726885846010,-152.677464,0.00014473,2]
[338701207,1726885846019,-152.677464,0.00014473,2]
[338701208,1726885846028,-151.0,0.00014473,2]
[338701209,1726885846038,-290.721966,0.00014473,2]
[338701210,1726885846047,-290.721966,0.00014473,2]
[338701211,1726885846056,-151.0,0.00014473,2]
[338701212,1726885846065,-488.129277,0.00014473,2]
[338701213,1726885846074,-488.129277,0.00014473,2]
[338701214,1726885846084,-193.018,0.00014473,2]
[338701215,1726885846093,-174.661316,0.00014473,2]
[338701216,1726885846102,-151.0,0.00014473,2]
[338701217,1726885846112,-151.0,0.00014473,2]
[338701218,1726885846123,-151.0,0.00014473,2]
[338701219,1726885846135,-207.852701,0.00014473,2]
[338701220,1726885846145,-7799.48899099,0.00014482,2]
[338701221,1726885846157,-151.0,0.0001449,2]
[338701222,1726885846166,-151.0,0.0001449,2]
[338701223,1726885846176,-2952.71,0.00014491,2]
[338701224,1726885846186,-500.0,0.00014491,2]
[338701225,1726885846195,-495.684743,0.00014491,2]
[338701226,1726885846206,-500.0,0.00014491,2]
[338701228,1726885846216,-495.684743,0.00014491,2]
[338701229,1726885846228,-182.048392,0.00014491,2]
[338701230,1726885846237,-158.5609,0.00014491,2]
[338701231,1726885846246,-628.76,0.00014491,2]
[338701232,1726885846255,-152.677464,0.00014491,2]
[338701233,1726885846265,-152.677464,0.00014491,2]
[338701234,1726885846274,-151.0,0.00014491,2]
[338701235,1726885846283,-500.0,0.00014491,2]
[338701236,1726885846292,-385.14628137,0.00014491,2]
[338701240,1726885846471,-810.36371863,0.00014491,2]
[338701241,1726885846481,-297.42881621,0.00014491,2]
[338701242,1726885846490,-500.0,0.00014491,2]
[338701243,1726885846501,-500.0,0.00014491,2]
[338701244,1726885846512,-488.129277,0.00014491,2]
[338701245,1726885846523,-302.92328393,0.00014491,2]
[338701246,1726885846534,-488.129277,0.00014491,2]
[338701247,1726885846543,-500.0,0.00014491,2]
[338701248,1726885846552,-500.0,0.00014491,2]
[338701249,1726885846561,-801.24,0.00014491,2]
[338701250,1726885846570,-151.0,0.00014491,2]
[338701251,1726885846583,-242.31162839,0.00014491,2]
[338701252,1726885846687,-282.01401555,0.00014491,2]
[338701253,1726885846697,-166.24723702,0.00014491,2]
[338701254,1726885846708,-1314.04,0.00014491,2]
[338701255,1726885846719,-500.0,0.00014491,2]
[338701256,1726885846730,-151.0,0.00014491,2]
[338701257,1726885846740,-151.0,0.00014491,2]
[338701258,1726885846750,-19009.72,0.00014491,2]
[338701259,1726885846759,-7799.48899099,0.00014492,2]
[338701260,1726885846770,-500.0,0.00014492,2]
[338701261,1726885846790,-500.0,0.00014492,2]
[338701262,1726885846802,-390.47537682,0.00014492,2]
[338701263,1726885846813,-500.0,0.00014492,2]
[338701264,1726885846823,-500.0,0.00014492,2]
[338701265,1726885846833,-151.0,0.00014492,2]
[338701266,1726885846846,-500.0,0.00014492,2]
[338701267,1726885846856,-367.7667251,0.00014492,2]
[338701268,1726885846867,-511.02880217,0.00014492,2]
[338701269,1726885846877,-957.71,0.00014492,2]
[338701270,1726885846889,-1418.438112,0.00014492,2]
[338701271,1726885846898,-223.90052132,0.00014492,2]
[338701272,1726885846910,-1418.438112,0.00014492,2]
[338701273,1726885846920,-781.840201,0.00014492,2]
[338701274,1726885846931,-356.1344272,0.00014492,2]
[338701275,1726885846941,-781.840201,0.00014492,2]
[338701276,1726885846952,-500.0,0.00014492,2]
[338701277,1726885846962,-161.33371117,0.00014492,2]
[338701278,1726885846973,-500.0,0.00014492,2]
[338701279,1726885846983,-500.0,0.00014492,2]
[338701280,1726885846993,-500.0,0.00014492,2]
[338701281,1726885847003,-596.17,0.00014492,2]
[338701282,1726885847013,-151.0,0.00014492,2]
[338701283,1726885847024,-501.65694303,0.00014492,2]
[338701284,1726885847035,-206.226971,0.00014492,2]
[338701285,1726885847045,-500.0,0.00014492,2]
[338701286,1726885847054,-500.0,0.00014492,2]
[338701287,1726885847064,-151.064509,0.00014492,2]
[338701288,1726885847074,-500.0,0.00014492,2]
[338701289,1726885847085,-500.0,0.00014492,2]
[338701290,1726885847094,-500.0,0.00014492,2]
[338701291,1726885847105,-333.60590168,0.00014492,2]
[338701292,1726885847116,-500.0,0.00014492,2]
[338701293,1726885847125,-500.0,0.00014492,2]
[338701294,1726885847135,-500.0,0.00014492,2]
[338701295,1726885847146,-513.45,0.00014492,2]
[338701296,1726885847157,-500.0,0.00014492,2]
[338701297,1726885847168,-500.0,0.00014492,2]
[338701298,1726885847179,-500.0,0.00014492,2]
[338701299,1726885847189,-500.0,0.00014492,2]
[338701300,1726885847198,-500.0,0.00014492,2]
[338701301,1726885847207,-500.0,0.00014492,2]
[338701302,1726885847216,-500.0,0.00014492,2]
[338701303,1726885847226,-500.0,0.00014492,2]
[338701304,1726885847236,-500.0,0.00014493,2]
[338701305,1726885847246,-500.0,0.00014493,2]
[338701306,1726885847257,-500.0,0.00014493,2]
[338701307,1726885847266,-500.0,0.00014493,2]
[338701308,1726885847280,-500.0,0.00014493,2]
[338701309,1726885847290,-500.0,0.00014493,2]
[338701310,1726885847299,-500.0,0.00014493,2]
[338701311,1726885847309,-500.0,0.00014493,2]
[338701312,1726885847319,-500.0,0.00014493,2]
[338701313,1726885847329,-500.0,0.00014493,2]
[338701314,1726885847338,-500.0,0.00014493,2]
[338701315,1726885847348,-773.58,0.00014493,2]
[338701316,1726885847357,-500.0,0.00014493,2]
[338701317,1726885847367,-519.00825817,0.00014493,2]
[338701318,1726885847376,-500.0,0.00014493,2]
[338701319,1726885847385,-500.0,0.00014493,2]
[338701320,1726885847395,-500.0,0.00014493,2]
[338701321,1726885847404,-500.0,0.00014493,2]
[338701322,1726885847413,-500.0,0.00014493,2]
[338701323,1726885847423,-500.0,0.00014493,2]
[338701324,1726885847432,-200.0,0.00014493,2]
[338701325,1726885847442,-500.0,0.00014493,2]
[338701326,1726885847455,-500.0,0.00014493,2]
[338701327,1726885847465,-500.0,0.00014493,2]
[338701328,1726885847476,-287.96362798,0.00014493,2]
[338701329,1726885847485,-500.0,0.00014493,2]
[338701330,1726885847495,-151.0,0.000145,2]
[338701331,1726885847651,-150.112233,0.000145,2]
[338701332,1726885847662,-150.112233,0.000145,2]
[338701333,1726885847672,-150.112233,0.000145,2]
[338701334,1726885847682,-500.0,0.00014502,2]
[338701335,1726885847692,-608.09068544,0.00014502,2]
[338701336,1726885847702,-562.47,0.00014502,2]
[338701337,1726885847713,-500.0,0.00014502,2]
[338701338,1726885847723,-500.0,0.00014502,2]
[338701339,1726885847732,-500.0,0.00014502,2]
[338701340,1726885847742,-500.0,0.00014502,2]
[338701341,1726885847754,-504.96488149,0.00014502,2]
[338701342,1726885847764,-500.0,0.00014502,2]
[338701343,1726885847774,-505.07644461,0.00014502,2]
[338701344,1726885847783,-500.0,0.00014502,2]
[338701345,1726885847793,-460.35283347,0.00014502,2]
[338701346,1726885847802,-500.0,0.00014502,2]
[338701347,1726885847811,-500.0,0.00014502,2]
[338701348,1726885847821,-500.0,0.00014502,2]
[338701349,1726885847831,-500.0,0.00014502,2]
[338701350,1726885847841,-500.0,0.00014502,2]
[338701351,1726885847851,-500.0,0.00014502,2]
[338701352,1726885847861,-500.0,0.00014502,2]
[338701353,1726885847873,-500.0,0.00014502,2]
[338701354,1726885847884,-500.0,0.00014502,2]
[338701355,1726885847894,-500.0,0.00014502,2]
[338701356,1726885847905,-500.0,0.00014502,2]
[338701357,1726885847917,-500.0,0.00014502,2]
[338701358,1726885847928,-500.0,0.00014502,2]
[338701359,1726885847938,-500.0,0.00014502,2]
[338701360,1726885847949,-500.0,0.00014502,2]
[338701361,1726885847959,-500.0,0.00014502,2]
[338701362,1726885847969,-518.41010164,0.00014502,2]
[338701363,1726885847979,-500.0,0.00014502,2]
[338701364,1726885847990,-500.0,0.00014502,2]
[338701365,1726885848000,-500.0,0.00014502,2]
[338701366,1726885848009,-500.0,0.00014502,2]
[338701367,1726885848019,-500.0,0.00014502,2]
[338701368,1726885848029,-502.05347367,0.00014502,2]
[338701369,1726885848038,-247.00020312,0.00014502,2]
[338701370,1726885848047,-500.0,0.00014502,2]
[338701371,1726885848057,-511.23388861,0.00014502,2]
[338701372,1726885848066,-518.82095985,0.00014502,2]
[338701373,1726885848075,-502.01356301,0.00014502,2]
[338701374,1726885848085,-511.59615971,0.00014502,2]
[338701375,1726885848094,-503.80585493,0.00014502,2]
[338701376,1726885848103,-500.0,0.00014502,2]
[338701377,1726885848113,-503.45060925,0.00014502,2]
[338701378,1726885848122,-500.0,0.00014502,2]
[338701379,1726885848132,-500.0,0.00014502,2]
[338701380,1726885848141,-211.36453597,0.00014502,2]
[338701381,1726885848151,-932.52,0.00014502,2]
[338701382,1726885848161,-500.0,0.00014502,2]
[338701383,1726885848170,-502.42511759,0.00014502,2]
[338701384,1726885848179,-500.0,0.00014502,2]
[338701385,1726885848189,-500.0,0.00014502,2]
[338701386,1726885848199,-500.0,0.00014502,2]
[338701387,1726885848209,-173.75331766,0.00014502,2]
[338701388,1726885848219,-500.0,0.00014502,2]
[338701389,1726885848229,-500.0,0.00014502,2]
[338701390,1726885848238,-596.44147905,0.00014502,2]
[338701391,1726885848247,-500.0,0.00014502,2]
[338701392,1726885848256,-500.0,0.00014502,2]
[338701393,1726885848266,-505.78073284,0.00014502,2]
[338701394,1726885848276,-500.0,0.00014502,2]
[338701395,1726885848286,-500.0,0.00014502,2]
[338701396,1726885848296,-500.0,0.00014502,2]
[338701397,1726885848305,-501.48109205,0.00014502,2]
[338701398,1726885848316,-500.0,0.00014502,2]
[338701399,1726885848326,-500.0,0.00014502,2]
[338701400,1726885848337,-500.0,0.00014502,2]
[338701401,1726885848347,-529.69710641,0.00014502,2]
[338701402,1726885848356,-506.57534725,0.00014502,2]
[338701403,1726885848365,-500.0,0.00014502,2]
[338701404,1726885848375,-505.47280466,0.00014502,2]
[338701405,1726885848384,-500.0,0.00014502,2]
[338701406,1726885848394,-579.89,0.00014502,2]
[338701407,1726885848403,-507.72725761,0.00014502,2]
[338701408,1726885848413,-500.0,0.00014502,2]
[338701409,1726885848423,-667.98,0.00014502,2]
[338701410,1726885848434,-500.0,0.00014502,2]
[338701411,1726885848444,-500.0,0.00014502,2]
[338701412,1726885848458,-500.66355923,0.00014502,2]
[338701413,1726885848469,-500.0,0.00014502,2]
[338701414,1726885848479,-539.45263553,0.00014502,2]
[338701415,1726885848488,-508.85454329,0.00014502,2]
[338701416,1726885848499,-500.0,0.00014502,2]
[338701417,1726885848508,-206.72899926,0.00014502,2]
[338701418,1726885848519,-179.29266303,0.00014502,2]
[338701419,1726885848531,-699.74,0.00014502,2]
[338701420,1726885848541,-500.0,0.00014502,2]
[338701421,1726885848550,-502.60706432,0.00014502,2]
[338701422,1726885848559,-500.0,0.00014502,2]
[338701423,1726885848569,-165.83856417,0.00014502,2]
[338701424,1726885848578,-7799.48899099,0.00014502,2]
[338701425,1726885848587,-190.142944,0.00014507,2]
[338701426,1726885848597,-151.0,0.00014507,2]
[338701427,1726885848606,-190.142944,0.00014507,2]
[338701428,1726885848614,-383.411006,0.00014507,2]
[338701429,1726885848624,-383.411006,0.00014507,2]
[338701430,1726885848633,-501.89778987,0.00014512,2]
[338701431,1726885848642,-500.0,0.00014512,2]
[338701432,1726885848651,-323.38260708,0.00014512,2]
[338701433,1726885848660,-500.0,0.00014512,2]
[338701434,1726885848671,-501.39275379,0.00014512,2]
[338701435,1726885848681,-502.03952897,0.00014512,2]
[338701436,1726885848691,-500.0,0.00014512,2]
[338701437,1726885848701,-501.52271377,0.00014512,2]
[338701438,1726885848710,-500.0,0.00014512,2]
[338701439,1726885848722,-503.4571669,0.00014512,2]
[338701440,1726885848731,-500.0,0.00014512,2]
[338701441,1726885848740,-500.0,0.00014512,2]
[338701442,1726885848750,-501.71165471,0.00014512,2]
[338701443,1726885848759,-207.55455039,0.00014512,2]
[338701444,1726885848768,-518.75003145,0.00014512,2]
[338701445,1726885848779,-500.0,0.00014512,2]
[338701446,1726885848789,-500.0,0.00014512,2]
[338701447,1726885848798,-595.45,0.00014512,2]
[338701448,1726885848807,-500.0,0.00014512,2]
[338701449,1726885848817,-511.44484,0.00014512,2]
[338701450,1726885848827,-504.91736688,0.00014512,2]
[338701451,1726885848836,-503.36298597,0.00014512,2]
[338701452,1726885848847,-152.679574,0.00014512,2]
[338701453,1726885848855,-500.0,0.00014512,2]
[338701454,1726885848867,-500.0,0.00014512,2]
[338701455,1726885848878,-500.0,0.00014512,2]
[338701456,1726885848888,-500.91389214,0.00014512,2]
[338701457,1726885848899,-151.0,0.00014512,2]
[338701458,1726885848909,-503.01370613,0.00014512,2]
[338701459,1726885848919,-342.78617405,0.00014512,2]
[338701460,1726885848930,-151.0,0.00014512,2]
[338701461,1726885848939,-501.44873453,0.00014512,2]
[338701462,1726885848948,-500.0,0.00014512,2]
[338701463,1726885848958,-724.520998,0.00014512,2]
[338701464,1726885848967,-501.44171087,0.00014512,2]
[338701465,1726885848977,-518.5881368,0.00014512,2]
[338701466,1726885848988,-724.520998,0.00014512,2]
[338701467,1726885848997,-431.599806,0.00014512,2]
[338701468,1726885849006,-509.29393756,0.00014512,2]
[338701469,1726885849015,-431.599806,0.00014512,2]
[338701470,1726885849024,-506.36763715,0.00014512,2]
[338701471,1726885849034,-1605.24,0.00014512,2]
[338701472,1726885849045,-151.0,0.00014512,2]
[338701473,1726885849054,-151.0,0.00014512,2]
[338701474,1726885849064,-507.39333379,0.00014512,2]
[338701475,1726885849073,-503.57348026,0.00014512,2]
[338701476,1726885849083,-500.0,0.00014512,2]
[338701477,1726885849094,-503.33269326,0.00014512,2]
[338701478,1726885849103,-500.0,0.00014512,2]
[338701479,1726885849115,-502.69070751,0.00014512,2]
[338701480,1726885849124,-507.69635395,0.00014512,2]
[338701481,1726885849135,-505.27364505,0.00014512,2]
[338701482,1726885849144,-503.54545512,0.00014512,2]
[338701483,1726885849154,-500.0,0.00014512,2]
[338701484,1726885849164,-502.9903017,0.00014512,2]
[338701485,1726885849173,-330.32,0.00014512,2]
[338701486,1726885849183,-853.98,0.00014512,2]
[338701487,1726885849193,-500.76260836,0.00014512,2]